fUSD/lending_fUSD_20250823
["ID","MTS","AMOUNT","RATE_DAILY","PERIOD"]
[381031711,1755959444699,-519.0,0.000165,4]
[381031712,1755959444709,-1000.0,0.000165,4]
[381031713,1755959444720,-1000.0,0.000165,3]
[381031714,1755959444729,-1000.0,0.000165,3]
[381031715,1755959444739,-1000.0,0.000165,3]
[381031716,1755959444748,-305.7529,0.000165,2]
[381031717,1755959444757,-1000.0,0.000165,2]
[381031718,1755959444767,-500.0,0.0001651,2]
[381031719,1755959444777,-674.97090611,0.00016525,2]
[381031720,1755959444786,-500.0,0.00016525,2]
[381031721,1755959444795,-500.0,0.00016539,2]
[381031722,1755959444805,-500.0,0.00016541,2]
[381031723,1755959444814,-500.0,0.00016554,2]
[381031724,1755959444824,-150.0,0.00016566,2]
[381031725,1755959444834,-150.0,0.00016566,2]
[381031726,1755959444844,-500.0,0.00016566,2]
[381031727,1755959444853,-600.0,0.00016566,2]
[381031728,1755959444863,-500.0,0.00016566,2]
[381031729,1755959444873,-150.0,0.00016566,2]
[381031730,1755959444882,-300.0,0.00016566,2]
[381031731,1755959444892,-200.0,0.00016566,2]
[381031732,1755959444901,-450.0,0.00016566,2]
[381031733,1755959444910,-150.0,0.00016566,2]
[381031734,1755959444920,-421.0,0.00016566,2]
[381031735,1755959444929,-494.0,0.00016566,2]
[381031736,1755959444939,-500.0,0.00016566,2]
[381031737,1755959444949,-500.0,0.00016566,2]
[381031738,1755959444958,-798.0,0.00016566,2]
[381031739,1755959444969,-500.0,0.00016568,2]
[381031740,1755959444979,-500.0,0.00016583,2]
[381031741,1755959444988,-1597.91,0.00016588,2]
[381031742,1755959444998,-500.0,0.00016597,2]
[381031743,1755959445008,-1000.0,0.00016599,2]
[381031744,1755959445018,-2000.0,0.00016599,2]
[381031745,1755959445027,-2000.0,0.00016599,2]
[381031746,1755959445037,-2000.0,0.00016599,2]
[381031747,1755959445047,-300.0,0.00016599,2]
[381031748,1755959445057,-300.0,0.00016599,2]
[381031749,1755959445066,-300.0,0.00016599,2]
[381031750,1755959445076,-300.0,0.00016599,2]
[381031751,1755959445086,-352.86478907,0.000166,2]
[381031752,1755959445095,-264781.0387698,0.000166,3]
[381031753,1755959445106,-458.60200496,0.000166,3]
[381031754,1755959445116,-218.29727,0.000166,2]
[381031755,1755959445125,-218.29727,0.000166,2]
[381031756,1755959445135,-218.29727,0.000166,2]
[381031757,1755959445144,-218.29727,0.000166,2]
[381031758,1755959445154,-420.093139,0.000166,2]
[381031759,1755959445164,-420.093139,0.000166,2]
[381031760,1755959445173,-420.093139,0.000166,2]
[381031761,1755959445183,-151.0,0.000166,2]
[381031762,1755959445193,-151.0,0.000166,2]
[381031763,1755959445203,-151.0,0.000166,2]
[381031764,1755959445214,-420.093139,0.000166,2]
[381031765,1755959445224,-151.0,0.000166,2]
[381031766,1755959445233,-151.0,0.000166,2]
[381031767,1755959445243,-151.0,0.000166,2]
[381031768,1755959445256,-151.0,0.000166,2]
[381031769,1755959445266,-2728.497295,0.000166,2]
[381031770,1755959445276,-2728.497295,0.000166,2]
[381031771,1755959445286,-2728.497295,0.000166,2]
[381031772,1755959445297,-2728.497295,0.000166,2]
[381031773,1755959445307,-151.0,0.000166,2]
[381031774,1755959445316,-3209.740139,0.000166,2]
[381031775,1755959445327,-151.0,0.000166,2]
[381031776,1755959445336,-3209.740139,0.000166,2]
[381031777,1755959445346,-151.0,0.000166,2]
[381031778,1755959445356,-3209.740139,0.000166,2]
[381031779,1755959445365,-151.0,0.000166,2]
[381031780,1755959445375,-3209.740139,0.000166,2]
[381031781,1755959445384,-151.0,0.000166,2]
[381031782,1755959445396,-151.0,0.000166,2]
[381031783,1755959445406,-151.0,0.000166,2]
[381031784,1755959445418,-151.0,0.000166,2]
[381031785,1755959445428,-151.0,0.000166,2]
[381031786,1755959445438,-2558.510066,0.000166,2]
[381031787,1755959445448,-151.0,0.000166,2]
[381031788,1755959445458,-1170.954403,0.000166,2]
[381031789,1755959445470,-2558.510066,0.000166,2]
[381031790,1755959445480,-151.0,0.000166,2]
[381031791,1755959445490,-1170.954403,0.000166,2]
[381031792,1755959445500,-2558.510066,0.000166,2]
[381031793,1755959445510,-1170.954403,0.000166,2]
[381031794,1755959445527,-2558.510066,0.000166,2]
[381031795,1755959445547,-160.825479,0.000166,2]
[381031796,1755959445558,-1229.467304,0.000166,2]
[381031797,1755959445568,-160.825479,0.000166,2]
[381031798,1755959445584,-1170.954403,0.000166,2]
[381031799,1755959445595,-1229.467304,0.000166,2]
[381031800,1755959445606,-160.825479,0.000166,2]
[381031801,1755959445615,-160.825479,0.000166,2]
[381031802,1755959445625,-1229.467304,0.000166,2]
[381031803,1755959445635,-1229.467304,0.000166,2]
[381031804,1755959445644,-151.0,0.000166,2]
[381031805,1755959445654,-3133.34059,0.0001661,2]
[381031806,1755959445664,-500.0,0.00016611,2]
[381031807,1755959445673,-500.0,0.00016626,2]
[381031808,1755959445683,-500.0,0.0001664,2]
[381031809,1755959445693,-150.0,0.00016648,2]
[381031810,1755959445702,-500.0,0.0001665,2]
[381031811,1755959445711,-500.0,0.00016655,2]
[381031812,1755959445724,-168.0,0.00016666,2]
[381031813,1755959445733,-500.0,0.00016669,2]
[381031814,1755959445743,-500.0,0.00016683,2]
[381031815,1755959445752,-168.0,0.00016684,2]
[381031816,1755959445762,-947.0,0.00016685,2]
[381031817,1755959445772,-3147.0,0.00016685,2]
[381031818,1755959445781,-500.0,0.00016698,2]
[381031819,1755959445790,-2000.0,0.00016699,2]
[381031820,1755959445800,-2000.0,0.00016699,2]
[381031821,1755959445809,-300.0,0.00016699,2]
[381031822,1755959445818,-300.0,0.00016699,2]
[381031823,1755959445828,-300.0,0.00016699,2]
[381031824,1755959445838,-300.0,0.00016699,2]
[381031825,1755959445847,-161774.05,0.000167,2]
[381031826,1755959445857,-12294.64,0.000167,2]
[381031827,1755959445867,-500.0,0.00016712,2]
[381031828,1755959445876,-400.0,0.00016712,2]
[381031829,1755959445886,-500.0,0.00016712,2]
[381031830,1755959445895,-188.62,0.00016712,2]
[381031831,1755959445904,-500.0,0.00016727,2]
[381031832,1755959445914,-500.0,0.00016731,2]
[381031833,1755959445923,-500.0,0.00016741,2]
[381031834,1755959445933,-500.0,0.00016756,2]
[381031836,1755959445942,-500.0,0.00016767,2]
[381031837,1755959445951,-500.0,0.0001677,2]
[381031838,1755959445961,-3147.0,0.0001678,2]
[381031839,1755959445973,-500.0,0.00016784,2]
[381031841,1755959445982,-3147.0,0.0001679,2]
[381031842,1755959445992,-500.0,0.00016799,2]
[381031843,1755959446002,-25000.0,0.000168,10]
[381031844,1755959446012,-164.11,0.000168,3]
[381031845,1755959446022,-500.0,0.00016813,2]
[381031847,1755959446031,-150.0,0.00016827,2]
[381031849,1755959446041,-500.0,0.00016828,2]
[381031851,1755959446052,-150.0,0.00016831,2]
[381031853,1755959446062,-150.0,0.00016831,2]
[381031854,1755959446072,-150.0,0.00016831,2]
[381031856,1755959446081,-150.0,0.00016831,2]
[381031857,1755959446091,-200.0,0.0001684,2]
[381031858,1755959446102,-150.0,0.0001684,2]
[381031859,1755959446111,-150.0,0.0001684,2]
[381031860,1755959446122,-500.0,0.0001684,2]
[381031861,1755959446132,-150.0,0.0001684,2]
[381031862,1755959446141,-300.0,0.0001684,2]
[381031863,1755959446151,-200.0,0.0001684,2]
[381031864,1755959446160,-421.0,0.0001684,2]
[381031865,1755959446170,-494.0,0.0001684,2]
[381031866,1755959446179,-500.0,0.0001684,2]
[381031867,1755959446189,-500.0,0.0001684,2]
[381031868,1755959446199,-798.0,0.0001684,2]
[381031869,1755959446210,-500.0,0.00016842,2]
[381031870,1755959446221,-500.0,0.00016857,2]
[381031871,1755959446230,-3133.34058,0.0001686,2]
[381031872,1755959446240,-298.26089446,0.00016861,2]
[381031873,1755959446250,-500.0,0.00016871,2]
[381031874,1755959446263,-500.0,0.00016885,2]
[381031875,1755959446274,-500.0,0.000169,2]
[381031876,1755959446283,-500.0,0.000169,6]
[381031877,1755959446294,-5000.0,0.000169,2]
[381031878,1755959446304,-500.0,0.00016914,2]
[381031879,1755959446314,-150.0,0.00016922,2]
[381031880,1755959446324,-757.7636464,0.00016928,2]
[381031881,1755959446336,-500.0,0.00016929,2]
[381031882,1755959446346,-500.0,0.00016943,2]
[381031883,1755959446356,-500.0,0.00016957,2]
[381031884,1755959446366,-500.0,0.00016972,2]
[381031885,1755959446375,-1077.52,0.00016977,2]
[381031886,1755959446385,-346.92554585,0.00016985,2]
[381031887,1755959446395,-747.8093786,0.00016986,2]
[381031888,1755959446407,-500.0,0.00016986,2]
[381031889,1755959446416,-400.0,0.00016986,2]
[381031890,1755959446426,-500.0,0.00016986,2]
[381031891,1755959446436,-168.0,0.00016989,2]
[381031892,1755959446445,-300.0,0.00016999,2]
[381031893,1755959446455,-300.0,0.00016999,2]
[381031894,1755959446467,-300.0,0.00016999,2]
[381031895,1755959446477,-300.0,0.00016999,2]
[381031896,1755959446487,-50397.67274759,0.00017,2]
[381031897,1755959446497,-1000.0,0.00017,4]
[381031898,1755959446506,-1000.0,0.00017,4]
[381031899,1755959446516,-1040.0,0.00017,4]
[381031900,1755959446526,-75087.50017417,0.00017,5]
[381031901,1755959446535,-3163.0,0.00017,5]
[381031902,1755959446544,-51415.75756611,0.00017,2]
[381031903,1755959446556,-120000.0,0.00017,2]
[381031904,1755959446565,-166.66666667,0.00017,2]
[381031905,1755959446574,-900.0,0.00017,3]
[381031906,1755959446584,-300.0,0.00017,2]
[381031907,1755959446594,-200.0,0.00017,2]
[381031908,1755959446603,-200.0,0.00017,2]
[381031909,1755959446614,-200.0,0.00017,2]
[381031910,1755959446625,-500.0,0.00017001,2]
[381031911,1755959446634,-179.68,0.00017006,2]
[381031912,1755959446646,-500.0,0.00017015,2]
[381031913,1755959446655,-3147.0,0.00017017,2]
[381031914,1755959446665,-500.0,0.0001703,2]
[381031915,1755959446674,-3147.0,0.00017036,2]
[381031916,1755959446684,-500.0,0.00017044,2]
[381031917,1755959446693,-500.0,0.00017058,2]
[381031918,1755959446703,-500.0,0.00017073,2]
[381031919,1755959446716,-500.0,0.00017087,2]
[381031920,1755959446726,-500.0,0.00017102,2]
[381031921,1755959446735,-3133.34059,0.0001711,2]
[381031922,1755959446745,-169.0799237,0.0001711,2]
[381031923,1755959446754,-267.83893894,0.00017114,2]
[381031924,1755959446764,-500.0,0.00017114,2]
[381031925,1755959446773,-150.0,0.00017114,2]
[381031926,1755959446783,-300.0,0.00017114,2]
[381031927,1755959446792,-421.0,0.00017114,2]
[381031928,1755959446801,-494.0,0.00017114,2]
[381031929,1755959446811,-500.0,0.00017114,2]
[381031930,1755959446820,-500.0,0.00017114,2]
[381031931,1755959446829,-798.0,0.00017114,2]
[381031932,1755959446839,-500.0,0.00017116,2]
[381031933,1755959446849,-168.0,0.00017122,2]
[381031934,1755959446859,-500.0,0.0001713,2]
[381031935,1755959446869,-500.0,0.00017145,2]
[381031936,1755959446878,-238.0,0.00017145,2]
[381031937,1755959446888,-500.0,0.00017159,2]
[381031938,1755959446898,-500.0,0.00017174,2]
[381031939,1755959446908,-500.0,0.00017188,2]
[381031940,1755959446918,-200.0,0.00017196,2]
[381031941,1755959446927,-1000.0,0.00017198,2]
[381031942,1755959446937,-500.0,0.00017203,2]
[381031943,1755959446947,-3147.0,0.00017214,2]
[381031944,1755959446956,-500.0,0.00017217,2]
[381031945,1755959446966,-3147.0,0.00017225,2]
[381031946,1755959446976,-500.0,0.00017231,2]
[381031947,1755959446986,-500.0,0.00017246,2]
[381031948,1755959446995,-150.0,0.00017251,2]
[381031949,1755959447005,-566.0,0.00017255,2]
[381031950,1755959447014,-599.0,0.00017255,2]
[381031951,1755959447024,-894.0,0.00017255,2]
[381031952,1755959447034,-2030.0,0.00017255,2]
[381031953,1755959447043,-6093.0,0.00017255,2]
[381031954,1755959447053,-925.0,0.00017255,2]
[381031955,1755959447062,-3373.0,0.00017255,2]
[381031956,1755959447072,-1255.0,0.00017255,2]
[381031957,1755959447082,-500.0,0.0001726,2]
[381031958,1755959447093,-400.0,0.0001726,2]
[381031959,1755959447103,-500.0,0.0001726,2]
[381031960,1755959447114,-500.0,0.00017275,2]
[381031961,1755959447124,-500.0,0.00017289,2]
[381031962,1755959447133,-1185.08,0.00017297,2]
[381031963,1755959447143,-539.5,0.00017297,2]
[381031964,1755959447152,-2000.0,0.000173,2]
[381031965,1755959447162,-500.0,0.00017304,2]
[381031966,1755959447177,-150.0,0.00017305,2]
[381031967,1755959447186,-175.61,0.00017316,2]
[381031968,1755959447196,-500.0,0.00017318,2]
[381031969,1755959447206,-500.0,0.00017332,2]
[381031970,1755959447216,-234.76,0.00017334,2]
[381031971,1755959447225,-287.0,0.00017336,2]
[381031972,1755959447235,-454.0,0.0001734,2]
[381031973,1755959447246,-500.0,0.00017347,2]
[381031974,1755959447259,-150.0,0.00017358,2]
[381031975,1755959447269,-500.0,0.00017361,2]
[381031976,1755959447279,-500.0,0.00017376,2]
[381031977,1755959447288,-150.0,0.00017383,2]
[381031978,1755959447299,-500.0,0.00017388,2]
[381031979,1755959447308,-250.0,0.00017388,2]
[381031980,1755959447317,-300.0,0.00017388,2]
[381031981,1755959447328,-421.0,0.00017388,2]
[381031982,1755959447338,-494.0,0.00017388,2]
[381031983,1755959447349,-500.0,0.00017388,2]
[381031984,1755959447358,-500.0,0.00017388,2]
[381031985,1755959447368,-798.0,0.00017388,2]
[381031986,1755959447378,-500.0,0.0001739,2]
[381031987,1755959447388,-40000.0,0.000174,5]
[381031988,1755959447399,-9534.25,0.000174,2]
[381031989,1755959447409,-500.0,0.00017404,2]
[381031990,1755959447422,-150.0,0.00017411,2]
[381031991,1755959447432,-500.0,0.00017419,2]
[381031992,1755959447442,-1152.0,0.00017426,2]
[381031993,1755959447453,-500.0,0.00017433,2]
[381031994,1755959447463,-150.94240011,0.00017437,2]
[381031995,1755959447782,-631.2542771,0.00017441,2]
[381031996,1755959447794,-500.0,0.00017448,2]
[381031997,1755959447806,-500.0,0.00017462,2]
[381031998,1755959447816,-150.0,0.00017465,2]
[381031999,1755959447826,-1000.0,0.00017469,2]
[381032000,1755959447835,-188.0,0.0001747,2]
[381032001,1755959447845,-500.0,0.00017477,2]
[381032002,1755959447855,-500.0,0.00017491,2]
[381032003,1755959447864,-342.0,0.00017494,2]
[381032004,1755959447874,-20000.0,0.000175,2]
[381032005,1755959447885,-250.0,0.000175,7]
[381032006,1755959447894,-500.0,0.00017505,2]
[381032007,1755959447905,-150.0,0.00017518,2]
[381032008,1755959447915,-500.0,0.0001752,2]
[381032009,1755959447925,-10910.09999129,0.00017533,2]
[381032010,1755959447935,-285.64879518,0.00017534,2]
[381032011,1755959447945,-400.0,0.00017534,2]
[381032012,1755959447954,-500.0,0.00017534,2]
[381032013,1755959447964,-500.53764133,0.00017534,2]
[381032014,1755959447974,-621.57,0.00017545,2]
[381032015,1755959447984,-500.0,0.00017549,2]
[381032016,1755959447994,-500.0,0.00017563,2]
[381032017,1755959448003,-150.0,0.00017571,2]
[381032018,1755959448013,-500.0,0.00017578,2]
[381032019,1755959448023,-500.0,0.00017592,2]
[381032020,1755959448033,-300.0,0.00017599,2]
[381032021,1755959448042,-300.0,0.00017599,2]
[381032022,1755959448052,-99579.64,0.000176,2]
[381032023,1755959448062,-19915.93,0.000176,2]
[381032024,1755959448072,-3983.18,0.000176,2]
[381032025,1755959448082,-500.0,0.00017606,2]
[381032026,1755959448091,-173.09510413,0.00017607,12]
[381032027,1755959448102,-500.0,0.00017621,2]
[381032028,1755959448111,-150.0,0.00017625,2]
[381032029,1755959448121,-500.0,0.00017635,2]
[381032030,1755959448131,-500.0,0.0001765,2]
[381032031,1755959448141,-937.35,0.00017655,2]
[381032032,1755959448153,-500.0,0.00017662,2]
[381032033,1755959448163,-300.0,0.00017662,2]
[381032034,1755959448174,-421.0,0.00017662,2]
[381032035,1755959448184,-494.0,0.00017662,2]
[381032036,1755959448195,-500.0,0.00017662,2]
[381032037,1755959448205,-500.0,0.00017662,2]
[381032038,1755959448215,-798.0,0.00017662,2]
[381032039,1755959448225,-500.0,0.00017664,2]
[381032040,1755959448236,-150.0,0.00017678,2]
[381032041,1755959448247,-500.0,0.00017678,2]
[381032042,1755959448262,-500.0,0.00017693,2]
[381032043,1755959448272,-3268.85581138,0.00017695,2]
[381032044,1755959448282,-24589.28,0.000177,2]
[381032045,1755959448292,-500.0,0.00017707,2]
[381032046,1755959448303,-1077.52,0.00017715,2]
[381032047,1755959448313,-500.0,0.00017722,2]
[381032048,1755959448323,-500.0,0.00017736,2]
[381032049,1755959448334,-1500.0,0.00017746,2]
[381032050,1755959448345,-500.0,0.00017751,2]
[381032051,1755959448354,-500.0,0.00017765,2]
[381032052,1755959448364,-500.0,0.00017779,2]
[381032053,1755959448373,-500.0,0.00017794,2]
[381032054,1755959448383,-400.0,0.00017808,2]
[381032055,1755959448393,-717.9350554,0.00017808,2]
[381032056,1755959448403,-500.0,0.00017836,2]
[381032057,1755959448413,-164.10560054,0.00017873,2]
[381032058,1755959448423,-522.15161724,0.00017873,2]
[381032059,1755959448433,-500.0,0.00017873,2]
[381032060,1755959448442,-500.0,0.00017873,2]
[381032061,1755959448452,-500.0,0.00017873,2]
[381032062,1755959448461,-500.0,0.00017873,2]
[381032063,1755959448473,-500.0,0.00017873,2]
[381032064,1755959448483,-500.0,0.00017873,2]
[381032065,1755959448493,-500.0,0.00017873,2]
[381032066,1755959448503,-500.0,0.00017873,2]
[381032067,1755959448513,-500.0,0.00017873,2]
[381032068,1755959448523,-500.0,0.00017873,2]
[381032069,1755959448532,-500.0,0.00017873,2]
[381032070,1755959448542,-500.0,0.00017873,2]
[381032071,1755959448552,-276.17418804,0.00017873,2]
[381032072,1755959448561,-646.05499372,0.00017873,2]
[381032073,1755959448571,-500.0,0.00017873,2]
[381032074,1755959448580,-500.0,0.00017873,2]
[381032075,1755959448590,-500.0,0.00017873,2]
[381032076,1755959448600,-300.0,0.00017899,2]
[381032077,1755959448609,-214.34983244,0.00017899,2]
[381032078,1755959448619,-99579.64,0.000179,2]
[381032079,1755959448629,-19915.93,0.000179,2]
[381032080,1755959448639,-3023.94240218,0.000179,5]
[381032081,1755959448648,-14000.0,0.000179,2]
[381032082,1755959448658,-151.0,0.000179,2]
[381032083,1755959448668,-151.0,0.000179,2]
[381032084,1755959448678,-151.0,0.000179,2]
[381032085,1755959448688,-1137.142783,0.000179,2]
[381032086,1755959448697,-151.0,0.000179,2]
[381032087,1755959448707,-1137.142783,0.000179,2]
[381032088,1755959448716,-151.0,0.000179,2]
[381032089,1755959448727,-422.006077,0.000179,2]
[381032090,1755959448736,-1137.142783,0.000179,2]
[381032091,1755959448746,-2403.052317,0.000179,2]
[381032092,1755959448756,-422.006077,0.000179,2]
[381032093,1755959448765,-1137.142783,0.000179,2]
[381032094,1755959448775,-2403.052317,0.000179,2]
[381032095,1755959448785,-422.006077,0.000179,2]
[381032096,1755959448795,-2403.052317,0.000179,2]
[381032097,1755959448804,-422.006077,0.000179,2]
[381032098,1755959448814,-2403.052317,0.000179,2]
[381032099,1755959448824,-229.717209,0.000179,2]
[381032100,1755959448833,-151.0,0.000179,2]
[381032101,1755959448843,-151.0,0.000179,2]
[381032102,1755959448853,-294.766804,0.000179,2]
[381032103,1755959448863,-151.0,0.000179,2]
[381032104,1755959448873,-151.0,0.000179,2]
[381032105,1755959448883,-151.0,0.000179,2]
[381032106,1755959448893,-151.0,0.000179,2]
[381032107,1755959448902,-151.0,0.000179,2]
[381032108,1755959448912,-151.0,0.000179,2]
[381032109,1755959448921,-151.0,0.000179,2]
[381032110,1755959448931,-264.238574,0.000179,2]
[381032111,1755959448941,-151.0,0.000179,2]
[381032112,1755959448950,-151.0,0.000179,2]
[381032113,1755959448960,-151.0,0.000179,2]
[381032114,1755959448971,-867.141915,0.000179,2]
[381032115,1755959448982,-187.625725,0.000179,2]
[381032116,1755959448991,-264.238574,0.000179,2]
[381032117,1755959449001,-867.141915,0.000179,2]
[381032118,1755959449014,-264.238574,0.000179,2]
[381032119,1755959449025,-867.141915,0.000179,2]
[381032120,1755959449036,-264.238574,0.000179,2]
[381032121,1755959449047,-867.141915,0.000179,2]
[381032122,1755959449059,-151.0,0.000179,2]
[381032123,1755959449069,-151.0,0.000179,2]
[381032124,1755959449079,-151.0,0.000179,2]
[381032125,1755959449090,-151.0,0.000179,2]
[381032126,1755959449099,-151.0,0.000179,2]
[381032127,1755959449109,-151.054298,0.000179,2]
[381032128,1755959449119,-153.284864,0.000179,2]
[381032129,1755959449129,-153.284864,0.000179,2]
[381032130,1755959449139,-153.284864,0.000179,2]
[381032131,1755959449149,-153.284864,0.000179,2]
[381032132,1755959449159,-151.0,0.000179,2]
[381032133,1755959449170,-151.0,0.000179,2]
[381032134,1755959449180,-151.0,0.000179,2]
[381032135,1755959449190,-151.0,0.000179,2]
[381032136,1755959449200,-151.0,0.000179,2]
[381032137,1755959449210,-151.0,0.000179,2]
[381032138,1755959449221,-180.755778,0.000179,2]
[381032139,1755959449231,-151.0,0.000179,2]
[381032140,1755959449240,-248.758551,0.000179,2]
[381032141,1755959449251,-248.758551,0.000179,2]
[381032142,1755959449264,-151.0,0.000179,2]
[381032143,1755959449274,-207.077595,0.000179,2]
[381032144,1755959449284,-248.758551,0.000179,2]
[381032145,1755959449295,-282.18065,0.000179,2]
[381032146,1755959449305,-248.758551,0.000179,2]
[381032147,1755959449315,-257.780093,0.000179,2]
[381032148,1755959449324,-282.18065,0.000179,2]
[381032149,1755959449336,-257.780093,0.000179,2]
[381032150,1755959449346,-282.18065,0.000179,2]
[381032151,1755959449356,-257.780093,0.000179,2]
[381032152,1755959449366,-282.18065,0.000179,2]
[381032153,1755959449376,-257.780093,0.000179,2]
[381032154,1755959449385,-151.0,0.000179,2]
[381032155,1755959449394,-151.0,0.000179,2]
[381032156,1755959449406,-151.0,0.000179,2]
[381032157,1755959449416,-2051.600279,0.000179,2]
[381032158,1755959449425,-2051.600279,0.000179,2]
[381032159,1755959449434,-500.0,0.000179,6]
[381032160,1755959449444,-2051.600279,0.000179,2]
[381032161,1755959449452,-151.0,0.000179,2]
[381032162,1755959449462,-2051.600279,0.000179,2]
[381032163,1755959449474,-235.783258,0.000179,2]
[381032164,1755959449484,-227.286665,0.000179,2]
[381032165,1755959449493,-227.286665,0.000179,2]
[381032166,1755959449504,-227.286665,0.000179,2]
[381032167,1755959449513,-227.286665,0.000179,2]
[381032168,1755959449523,-151.144145,0.000179,2]
[381032169,1755959449532,-767.820458,0.000179,2]
[381032170,1755959449542,-767.820458,0.000179,2]
[381032171,1755959449551,-767.820458,0.000179,2]
[381032172,1755959449561,-767.820458,0.000179,2]
[381032173,1755959449571,-151.0,0.000179,2]
[381032174,1755959449580,-12000.0,0.000179,2]
[381032175,1755959449590,-151.0,0.000179,2]
[381032176,1755959449599,-151.0,0.000179,2]
[381032177,1755959449609,-12000.0,0.000179,2]
[381032178,1755959449619,-151.0,0.000179,2]
[381032179,1755959449628,-12000.0,0.000179,2]
[381032180,1755959449638,-435.273855,0.000179,2]
[381032181,1755959449647,-435.273855,0.000179,2]
[381032182,1755959449656,-12000.0,0.000179,2]
[381032183,1755959449665,-3503.644184,0.000179,2]
[381032184,1755959449675,-435.273855,0.000179,2]
[381032185,1755959449684,-12000.0,0.000179,2]
[381032186,1755959449693,-1682.055688,0.000179,2]
[381032187,1755959449703,-3503.644184,0.000179,2]
[381032188,1755959449712,-435.273855,0.000179,2]
[381032189,1755959449723,-12000.0,0.000179,2]
[381032190,1755959449734,-1682.055688,0.000179,2]
[381032191,1755959449743,-3503.644184,0.000179,2]
[381032192,1755959449753,-12000.0,0.000179,2]
[381032193,1755959449763,-1682.055688,0.000179,2]
[381032194,1755959449773,-3503.644184,0.000179,2]
[381032195,1755959449785,-1121.790224,0.000179,2]
[381032196,1755959449795,-12000.0,0.000179,2]
[381032197,1755959449804,-1682.055688,0.000179,2]
[381032198,1755959449814,-1121.790224,0.000179,2]
[381032199,1755959449824,-1121.790224,0.000179,2]
[381032200,1755959449833,-1121.790224,0.000179,2]
[381032201,1755959449843,-151.0,0.000179,2]
[381032202,1755959449852,-525.468122,0.000179,2]
[381032203,1755959449861,-525.468122,0.000179,2]
[381032204,1755959449871,-1701.967032,0.000179,2]
[381032205,1755959449880,-241.536099,0.000179,2]
[381032206,1755959449890,-525.468122,0.000179,2]
[381032207,1755959449900,-1701.967032,0.000179,2]
[381032208,1755959449910,-241.536099,0.000179,2]
[381032209,1755959449920,-1701.967032,0.000179,2]
[381032210,1755959449929,-525.468122,0.000179,2]
[381032211,1755959449939,-241.536099,0.000179,2]
[381032212,1755959449949,-1701.967032,0.000179,2]
[381032213,1755959449959,-151.0,0.000179,2]
[381032214,1755959449969,-241.536099,0.000179,2]
[381032215,1755959449978,-216.820444,0.000179,2]
[381032216,1755959449988,-151.0,0.000179,2]
[381032217,1755959449997,-161.6576,0.000179,2]